lending/lending_fUSD_20260210
["ID","MTS","AMOUNT","RATE_DAILY","PERIOD"]
[404921582,1770685831965,-500.0,0.00016161,2]
[404921584,1770685831974,-500.0,0.00016161,2]
[404921585,1770685831983,-500.0,0.00016161,2]
[404921587,1770685831993,-500.0,0.00016161,2]
[404921591,1770685832003,-500.0,0.00016161,2]
[404921593,1770685832012,-500.0,0.00016161,2]
[404921596,1770685832021,-500.0,0.00016161,2]
[404921600,1770685832030,-403.34835626,0.00016161,2]
[404921606,1770685832044,-96.65164374,0.00016161,2]
[404921608,1770685832053,-200.0,0.00016161,2]
[404921611,1770685832062,-0.96883703,0.00016161,2]
[404921616,1770685832074,-499.03116297,0.00016161,2]
[404921619,1770685832084,-500.0,0.00016161,2]
[404921621,1770685832100,-500.0,0.00016161,2]
[404921622,1770685832111,-500.0,0.00016161,2]
[404921623,1770685832120,-500.0,0.00016161,2]
[404921624,1770685832129,-500.0,0.00016161,2]
[404921625,1770685832138,-500.0,0.00016161,2]
[404921626,1770685832147,-500.0,0.00016161,2]
[404921627,1770685832157,-500.0,0.00016161,2]
[404921628,1770685832167,-279.51275925,0.00016161,2]
[404921629,1770685832192,-220.48724075,0.00016161,2]
[404921630,1770685832213,-340.84195793,0.00016161,2]
[404921632,1770685832240,-159.15804207,0.00016161,2]
[404921634,1770685832262,-500.0,0.00016161,2]
[404921636,1770685832281,-354.92645247,0.00016161,2]
[404921638,1770685832298,-145.07354753,0.00016161,2]
[404921640,1770685832311,-500.0,0.00016161,2]
[404921642,1770685832324,-500.0,0.00016161,2]
[404921644,1770685832335,-500.0,0.00016161,2]
[404921646,1770685832347,-367.70999826,0.00016161,2]
[404921649,1770685832359,-132.29000174,0.00016161,2]
[404921651,1770685832370,-500.0,0.00016161,2]
[404921653,1770685832380,-500.0,0.00016161,2]
[404921655,1770685832391,-500.0,0.00016161,2]
[404921656,1770685832403,-500.0,0.00016161,2]
[404921658,1770685832413,-500.0,0.00016161,2]
[404921660,1770685832423,-500.0,0.00016161,2]
[404921662,1770685832432,-500.0,0.00016161,2]
[404921665,1770685832442,-500.0,0.00016161,2]
[404921667,1770685832451,-500.0,0.00016161,2]
[404921669,1770685832460,-500.0,0.00016161,2]
[404921670,1770685832470,-500.0,0.00016161,2]
[404921672,1770685832479,-500.0,0.00016161,2]
[404921675,1770685832488,-500.0,0.00016161,2]
[404921677,1770685832498,-500.0,0.00016161,2]
[404921679,1770685832510,-500.0,0.00016161,2]
[404921681,1770685832520,-500.0,0.00016161,2]
[404921682,1770685832530,-500.0,0.00016161,2]
[404921684,1770685832539,-494.3424466,0.00016161,2]
[404921687,1770685832548,-500.0,0.00016161,2]
[404921689,1770685832559,-500.0,0.00016161,2]
[404921690,1770685832568,-500.0,0.00016161,2]
[404921692,1770685832578,-500.0,0.00016161,2]
[404921695,1770685832587,-500.0,0.00016161,2]
[404921696,1770685832597,-500.0,0.00016161,2]
[404921699,1770685832607,-500.0,0.00016161,2]
[404921700,1770685832616,-500.0,0.00016161,2]
[404921703,1770685832625,-500.0,0.00016161,2]
[404921705,1770685832635,-500.0,0.00016161,2]
[404921707,1770685832645,-300.0,0.00016161,2]
[404921709,1770685832655,-500.0,0.00016161,2]
[404921711,1770685832664,-500.0,0.00016161,2]
[404921713,1770685832673,-500.0,0.00016161,2]
[404921715,1770685832682,-110870.99964752,0.00016162,2]
[404921717,1770685832694,-522.04790989,0.00016162,2]
[404921731,1770685837770,-172563.21549954,0.00016162,2]
[404921732,1770685837823,-6892.77995717,0.00016162,2]
[404921738,1770685839829,-1361092.95993833,0.00016162,2]
[404921739,1770685839842,-6102.48730991,0.00016162,2]
[404921740,1770685839854,-778.08815853,0.00016162,2]
[404921741,1770685839883,-875.50000001,0.00016162,2]
[404921742,1770685839894,-522.9232407,0.00016162,2]
[404921743,1770685839906,-3805.97732498,0.00016162,2]
[404921744,1770685840206,-6128.48135184,0.00016162,2]
[404921745,1770685840218,-2236.19879489,0.00016162,2]
[404921746,1770685840230,-281.6245675,0.00016162,2]
[404921765,1770685857480,204.36935704,0.00016062,2]
[404921766,1770685859021,818.34928798,0.00016062,2]
[404921767,1770685859047,7367.93519688,0.00016062,2]
[404921768,1770685859317,2632.07480312,0.00016061,2]
[404921769,1770685859340,10000.01,0.00016061,2]
[404921770,1770685859363,10000.01,0.00016061,2]
[404921771,1770685859386,10000.01,0.00016061,2]
[404921772,1770685859411,10000.01,0.00016061,2]
[404921773,1770685859436,10000.01,0.00016061,2]
[404921774,1770685859459,10000.01,0.00016061,2]
[404921775,1770685859481,10000.01,0.00016061,2]
[404921781,1770685867191,93.95325535,0.00015773,2]
[404921782,1770685867216,63.1423373,0.00015773,2]
[404921783,1770685867360,310.90523737,0.00015773,2]
[404921785,1770685923801,-1226.5,0.00015719,2]
[404921788,1770685938649,-2696.17,0.0001574,2]
[404921789,1770685954841,-1226.5,0.00015748,2]
[404921791,1770685970865,-300.0,0.00015772,2]
[404921792,1770685983247,9400.01,0.00015091,2]
[404921793,1770685983272,8793.99,0.00015091,2]
[404921794,1770685984144,1206.02,0.000156,5]
[404921795,1770685984168,2893.98,0.000156,5]
[404921796,1770685986237,7106.03,0.000157,5]
[404921797,1770685986260,1193.97,0.000157,5]
[404921799,1770685992087,200.0,0.0001507,2]
[404921800,1770686008362,863.0,0.00015772,2]
[404921802,1770686062073,1852.42,0.00015029,2]
[404921803,1770686094624,2425.85,0.00015014,2]
[404921804,1770686101198,300.0,0.00015772,2]
[404921805,1770686101232,1200.0,0.00015772,2]
[404921806,1770686101618,230.0,0.00015772,2]
[404921810,1770686119755,300.0,0.00015772,2]
[404921811,1770686161341,300.0,0.00015772,2]
[404921812,1770686167762,500.0,0.00014993,2]
[404921824,1770686183489,1828.74,0.00015673,2]
[404921825,1770686183512,792.77123256,0.00015673,2]
[404921828,1770686208488,250.0,0.00015,2]
[404921867,1770686270360,-166.62269608,0.00015773,2]
[404921869,1770686270386,-500.0,0.00015773,2]
[404921871,1770686270415,-500.0,0.00015773,2]
[404921872,1770686270441,-500.0,0.00015773,2]
[404921873,1770686270467,-160.01596534,0.00015773,2]
[404921874,1770686270494,-500.0,0.00015773,2]
[404921875,1770686270520,-645.61919187,0.00015773,2]
[404921876,1770686270546,-500.0,0.00015773,2]
[404921877,1770686270573,-186.13738987,0.00015773,2]
[404921878,1770686270599,-250.0,0.00015773,2]
[404921879,1770686270625,-300.0,0.00015773,2]
[404921880,1770686270651,-300.0,0.00015773,2]
[404921881,1770686270678,-82.05359806,0.00015774,2]
[404921882,1770686270881,-819.11231756,0.00015774,2]
[404921883,1770686270909,-500.0,0.00015774,2]
[404921884,1770686270937,-193.0,0.00015775,2]
[404921885,1770686270965,-1226.5,0.00015777,2]
[404921886,1770686270993,-500.0,0.00015784,2]
[404921887,1770686271022,-509.10838817,0.00015795,2]
[404921888,1770686273296,-9018.02803086,0.000158,5]
[404921889,1770686273446,-3481.97196914,0.000158,5]
[404921890,1770686273474,-300.0,0.00015805,2]
[404921891,1770686273502,-1209.56606172,0.00015806,2]
[404921892,1770686273550,-16.93393828,0.00015806,2]
[404921893,1770686273583,-197.87651825,0.00015827,2]
[404921894,1770686273611,-150.99,0.00015827,2]
[404921895,1770686273658,-9302.2769635,0.00015827,2]
[404921896,1770686273714,-697.7130365,0.00015827,2]
[404921897,1770686273744,-1226.5,0.00015835,2]
[404921898,1770686273771,-405.24,0.00015835,2]
[404921899,1770686273832,-5341.103927,0.00015835,2]
[404921919,1770686276184,-4658.886073,0.00015835,2]
[404921923,1770686276378,-299.99,0.00015835,2]
[404921924,1770686276443,-999.99,0.00015835,2]
[404921925,1770686276472,-167.33502653,0.00015861,2]
[404921926,1770686276502,-2609.01197653,0.00015861,2]
[404921927,1770686276599,-82.257854,0.00015861,2]
[404921928,1770686276612,-2447.33599388,0.00015861,2]
[404921929,1770686279182,-1741.15297497,0.00015861,2]
[404921930,1770686279204,-6517.70405006,0.00015861,2]
[404921931,1770686279237,-2893.58476368,0.00015861,2]
[404921932,1770686279265,-1163.17970254,0.00015861,2]
[404921933,1770686279293,-500.0,0.00015861,2]
[404921934,1770686279319,-386.48106756,0.00015861,2]
[404921935,1770686279377,-113.51893244,0.00015861,2]
[404921936,1770686279404,-500.0,0.00015861,2]
[404921937,1770686279431,-500.0,0.00015861,2]
[404921938,1770686279459,-500.0,0.00015861,2]
[404921939,1770686279487,-500.0,0.00015861,2]
[404921940,1770686279514,-500.0,0.00015861,2]
[404921941,1770686279541,-500.0,0.00015861,2]
[404921942,1770686279567,-500.0,0.00015861,2]
[404921943,1770686279593,-500.0,0.00015861,2]
[404921944,1770686279619,-186.04809376,0.00015862,2]
[404921945,1770686279647,-174.3759476,0.00015864,2]
[404921946,1770686279729,-1052.1240524,0.00015864,2]
[404921947,1770686279757,-221.24334971,0.00015879,2]
[404921948,1770686279785,-150.0,0.00015879,2]
[404921949,1770686279813,-150.0,0.00015879,2]
[404921950,1770686279844,-193.99521436,0.00015879,2]
[404921951,1770686279871,-1226.5,0.00015893,2]
[404921952,1770686280203,-1165.64298484,0.000159,5]
[404921953,1770686280217,-4012.28476706,0.000159,5]
[404921954,1770686280232,-10000.01,0.000159,5]
[404921994,1770686294458,800.0,0.000155,5]
[404921997,1770686296552,1600.0,0.000156,5]
[404922020,1770686456415,155.51,0.00014994,2]
[404922024,1770686493470,2156.936,0.00015386,2]
[404922025,1770686505726,-500.0,0.0001564,2]
[404922026,1770686505750,-2400.0,0.000157,5]
[404922027,1770686505774,-737100.0,0.000157,2]
[404922109,1770686610611,5000.01,0.00014965,2]
[404922110,1770686610635,3955.69,0.00014965,2]
[404922111,1770686618588,1000.0,0.00014965,2]
[404922112,1770686667951,2874.28,0.00014929,2]
[404922113,1770686713665,171.23,0.00011914,2]
[404922114,1770686713890,171.23,0.000139,2]
[404922117,1770686733382,5000.01,8.36e-06,2]
[404922118,1770686733406,2811.216936,8.36e-06,2]
[404922119,1770686757400,1000.0,0.00035,30]
[404922122,1770686771324,-300.0,0.00015599,2]
[404922123,1770686771357,-300.0,0.00015599,2]
[404922124,1770686771386,-300.0,0.00015599,2]
[404922125,1770686771415,-1200.0,0.00015599,2]
[404922126,1770686771446,-250.0,0.000156,2]
[404922127,1770686771475,-2436.55069835,0.000156,2]
[404922128,1770686777203,-3000.74192184,0.000156,2]
[404922129,1770686777232,-1098.4747358,0.00015614,2]
[404922130,1770686777261,-273.08797474,0.00015614,2]
[404922131,1770686777289,-159.98893855,0.00015614,2]
[404922132,1770686778713,247.68646458,0.00015514,2]
[404922133,1770686783220,-935.42285814,0.00015614,2]
[404922134,1770686783250,-2464.49702488,0.00015614,2]
[404922135,1770686783280,-546.10334686,0.00015614,2]
[404922136,1770686785078,2053.46735805,0.00015,2]
[404922141,1770686798573,172.0,9.8e-07,2]
[404922142,1770686807122,9141.88,0.00014934,2]
[404922143,1770686812293,214.06752899,0.00015514,2]
[404922144,1770686824439,732.31649054,0.00015514,2]
[404922147,1770686825629,204.24602948,0.00015514,2]
[404922148,1770686827070,917.69333032,0.00015514,2]
[404922151,1770686828011,552.593064,7.945e-05,2]
[404922152,1770686842253,182.05864982,0.00015511,2]
[404922153,1770686855026,2411.10243584,0.000155,5]
[404922154,1770686855051,1088.89756416,0.000155,5]
[404922249,1770686892382,2472.03243816,0.000155,2]
[404922252,1770686897052,1439.07999768,0.00014862,2]
[404922253,1770686897075,2709.98000232,0.00014862,2]
[404922254,1770686905864,1626.2101,0.000155,2]
[404922268,1770686953985,214.06752898,0.000155,2]
[404922269,1770686955658,333.18,0.00014884,2]
[404922270,1770686955869,116.5723687,0.00014884,2]
[404922271,1770686955893,83.4276313,0.00014884,2]
[404922272,1770686960279,488.21099368,0.000155,2]
[404922274,1770686972518,182.05864982,0.000155,2]
[404922277,1770687003609,4246.3127252,0.00012133,2]
[404922278,1770687003635,2495.5972748,0.00012133,2]
[404922281,1770687012517,1648.02162544,0.000155,2]
[404922283,1770687022957,856.39109976,0.000155,2]
[404922284,1770687022982,5000.01,0.000155,2]
[404922285,1770687023008,5000.01,0.000155,2]
[404922286,1770687031874,-999.0,0.000155,2]
[404922294,1770687032169,-4198.3695755,0.000155,2]
[404922295,1770687032184,-305.85181942,0.000155,2]
[404922296,1770687032195,-610.745,0.000155,2]
[404922297,1770687032206,-1454.9454741,0.000155,2]
[404922298,1770687032218,-247.68646457,0.00015557,2]
[404922299,1770687032228,-280.0,0.00015557,2]
[404922300,1770687032237,-1024.0,0.00015562,2]
[404922301,1770687032247,-150.0,0.00015573,2]
[404922303,1770687032256,-150.0,0.00015573,2]
[404922305,1770687032266,-215.51372333,0.0001559,2]
[404922307,1770687032275,-924.95785361,0.00015598,2]
[404922310,1770687032291,-275.04214639,0.00015598,2]
[404922312,1770687032301,-247.68646457,0.00015599,2]
[404922314,1770687032310,-359.1398856,0.00015599,2]
[404922361,1770687038026,-828.1405946,0.00015599,2]
[404922362,1770687038038,-12.7195198,0.00015599,2]
[404922363,1770687038048,-300.0,0.00015599,2]
[404922364,1770687038058,-300.0,0.00015599,2]
[404922365,1770687038067,-300.0,0.00015599,2]
[404922366,1770687038077,-602.02439126,0.000156,2]
[404922367,1770687038154,-558.38385669,0.000156,2]
[404922368,1770687038166,-2204.41599587,0.000156,2]
[404922369,1770687038179,-3496635.17575618,0.000156,2]
[404922370,1770687038190,-2500.0,0.000156,2]
[404922371,1770687038200,-7100.0,0.000156,5]
[404922372,1770687038211,-197.06817,0.00015611,2]
[404922373,1770687038221,-202.98536475,0.00015628,2]
[404922374,1770687038232,-2874.28,0.00015675,2]
[404922375,1770687038242,-7360.69818747,0.0001569,2]
[404922376,1770687038252,-151.0,0.00015691,2]
[404922377,1770687038261,-151.0,0.00015691,2]
[404922378,1770687038272,-174.61919141,0.00015691,2]
[404922379,1770687038282,-151.0,0.00015691,2]
[404922380,1770687038291,-233.77669251,0.00015691,2]
[404922381,1770687038301,-151.0,0.00015691,2]
[404922382,1770687038311,-259.48658918,0.00015691,2]
[404922383,1770687038320,-500.0,0.00015691,2]
[404922384,1770687038330,-500.0,0.00015691,2]
[404922385,1770687038339,-250.0,0.00015691,2]
[404922386,1770687038349,-334.5472959,0.00015691,2]
[404922387,1770687038359,-250.0,0.00015691,2]
[404922388,1770687038369,-250.0,0.00015691,2]
[404922389,1770687038378,-389.12096221,0.00015691,2]
[404922390,1770687038390,-250.0,0.00015691,2]
[404922391,1770687038400,-250.0,0.00015691,2]
[404922392,1770687038409,-500.0,0.00015691,2]
[404922394,1770687038418,-277.35679052,0.00015691,2]
[404922396,1770687038427,-500.0,0.00015691,2]
[404922398,1770687038436,-286.68,0.00015699,2]
[404922399,1770687038446,-10600.0,0.000157,5]
[404922400,1770687038456,-500.0,0.00015713,2]
[404922401,1770687038465,-500.0,0.00015713,2]
[404922402,1770687038474,-500.0,0.00015713,2]
[404922403,1770687038483,-500.0,0.00015713,2]
[404922404,1770687038492,-500.0,0.00015713,2]
[404922405,1770687038502,-500.0,0.00015713,2]
[404922406,1770687038511,-500.0,0.00015713,2]
[404922407,1770687038521,-473.73207244,0.00015713,2]
[404922408,1770687038530,-500.0,0.00015713,2]
[404922409,1770687038539,-500.0,0.00015713,2]
[404922410,1770687038548,-500.0,0.00015713,2]
[404922411,1770687038558,-500.0,0.00015713,2]
[404922412,1770687038567,-500.0,0.00015713,2]
[404922413,1770687038577,-500.0,0.00015713,2]
[404922414,1770687038586,-500.0,0.00015713,2]
[404922415,1770687038599,-500.0,0.00015713,2]
[404922416,1770687038608,-500.0,0.00015713,2]
[404922417,1770687038618,-500.0,0.00015713,2]
[404922418,1770687038627,-500.0,0.00015713,2]
[404922419,1770687038637,-500.0,0.00015713,2]
[404922420,1770687038649,-500.0,0.00015713,2]
[404922421,1770687038658,-500.0,0.00015713,2]
[404922422,1770687038667,-500.0,0.00015713,2]
[404922423,1770687038677,-500.0,0.00015713,2]
[404922424,1770687038686,-500.0,0.00015713,2]
[404922425,1770687038695,-500.0,0.00015713,2]
[404922426,1770687038704,-500.0,0.00015713,2]
[404922427,1770687038714,-500.0,0.00015713,2]
[404922428,1770687038723,-500.0,0.00015713,2]
[404922429,1770687038732,-500.0,0.00015713,2]
[404922430,1770687038742,-500.0,0.00015713,2]
[404922431,1770687038751,-173.52899153,0.00015713,2]
[404922432,1770687038760,-133778.9363311,0.00015714,2]
[404922433,1770687038770,-18425.32296869,0.00015767,2]
[404922434,1770687038780,-162.65190433,0.00015773,2]
[404922435,1770687038789,-500.0,0.00015773,2]
[404922436,1770687038799,-500.0,0.00015773,2]
[404922437,1770687038809,-500.0,0.00015773,2]
[404922438,1770687038819,-170.50126432,0.00015773,2]
[404922439,1770687038828,-500.51588024,0.00015773,2]
[404922440,1770687038838,-500.0,0.00015773,2]
[404922441,1770687038847,-500.0,0.00015773,2]
[404922442,1770687038857,-500.0,0.00015773,2]
[404922443,1770687038867,-500.0,0.00015773,2]
[404922444,1770687038885,-544.38936191,0.00015773,2]
[404922445,1770687038895,-541.85466405,0.00015773,2]
[404922446,1770687038905,-500.0,0.00015773,2]
[404922447,1770687038915,-500.0,0.00015773,2]
[404922448,1770687038924,-500.0,0.00015773,2]
[404922449,1770687038934,-500.0,0.00015773,2]
[404922450,1770687038943,-500.0,0.00015773,2]
[404922451,1770687038953,-260.08886255,0.00015773,2]
[404922452,1770687038963,-500.0,0.00015773,2]
[404922453,1770687038972,-566.79504262,0.00015773,2]
[404922454,1770687038981,-500.69134902,0.00015773,2]
[404922455,1770687038991,-500.0,0.00015773,2]
[404922456,1770687039000,-602.69989119,0.00015773,2]
[404922457,1770687039009,-500.0,0.00015773,2]
[404922458,1770687039019,-500.0,0.00015773,2]
[404922459,1770687039028,-14200.0,0.000158,5]
[404922460,1770687039037,-476.91757725,0.00015861,2]
[404922461,1770687039046,-1000.0,0.00015861,2]
[404922462,1770687039056,-57268.86,0.00015878,2]
[404922463,1770687039065,-999.99,0.00015878,2]
[404922464,1770687039076,-9999.99,0.00015878,2]
[404922465,1770687039085,-169.59649509,0.00015878,2]
[404922466,1770687039095,-150.0,0.00015878,2]
[404922467,1770687039104,-5333.53,0.00015878,2]
[404922468,1770687039114,-9999.99,0.00015878,2]
[404922469,1770687039124,-150.99,0.00015878,2]
[404922470,1770687039134,-9999.99,0.00015878,2]
[404922471,1770687039146,-150.0,0.00015878,2]
[404922472,1770687039156,-500.0,0.00015878,2]
[404922473,1770687039166,-155.41981542,0.00015878,2]
[404922474,1770687039175,-500.0,0.00015878,2]
[404922475,1770687039186,-150.0,0.00015878,2]
[404922476,1770687039195,-500.0,0.00015878,2]
[404922477,1770687039206,-150.0,0.00015878,2]
[404922478,1770687039216,-500.0,0.00015878,2]
[404922479,1770687039226,-274.38042852,0.00015878,2]
[404922480,1770687039236,-150.0,0.00015878,2]
[404922481,1770687039245,-150.0,0.00015878,2]
[404922482,1770687039255,-150.0,0.00015878,2]
[404922483,1770687039265,-150.0,0.00015878,2]
[404922484,1770687039275,-150.0,0.00015878,2]
[404922485,1770687039285,-158.91214935,0.00015878,2]
[404922486,1770687039295,-150.0,0.00015878,2]
[404922487,1770687039304,-158.30083167,0.00015878,2]
[404922488,1770687039313,-150.0,0.00015878,2]
[404922489,1770687039323,-500.0,0.00015878,2]
[404922490,1770687039332,-500.0,0.00015878,2]
[404922491,1770687039341,-955.0,0.00015878,2]
[404922492,1770687039350,-200.0,0.00015878,2]
[404922493,1770687039360,-171.23,0.00015886,2]
[404922494,1770687039370,-17700.0,0.000159,5]
[404922495,1770687039382,-1226.5,0.00015922,2]
[404922496,1770687039392,-235.49802766,0.00015933,2]
[404922497,1770687039401,-150.0,0.00015933,2]
[404922498,1770687039412,-500.0,0.00015933,2]
[404922499,1770687039421,-526.38561146,0.00015933,2]
[404922500,1770687039430,-150.0,0.00015933,2]
[404922501,1770687039439,-500.0,0.00015933,2]
[404922502,1770687039448,-152.91583051,0.00015933,2]
[404922503,1770687039458,-550.10757353,0.00015933,2]
[404922504,1770687039469,-150.0,0.00015933,2]
[404922505,1770687039479,-150.0,0.00015933,2]
[404922506,1770687039489,-150.0,0.00015933,2]
[404922507,1770687039498,-150.0,0.00015933,2]
[404922508,1770687039508,-150.0,0.00015933,2]
[404922509,1770687039518,-500.0,0.00015933,2]
[404922510,1770687039527,-500.0,0.00015933,2]
[404922511,1770687039537,-955.0,0.00015933,2]
[404922512,1770687039546,-200.0,0.00015933,2]
[404922513,1770687039555,-1226.5,0.00015951,2]
[404922514,1770687039564,-1316.12626123,0.0001596,5]
[404922515,1770687039573,-139656.9478,0.00015961,2]
[404922516,1770687039583,-33312.6077,0.00015961,2]
[404922517,1770687039592,-286.68,0.00015973,2]
[404922518,1770687039601,-1226.5,0.0001598,2]
[404922519,1770687039610,-201.50054242,0.00015988,2]
[404922520,1770687039619,-448.53577357,0.00015988,2]
[404922521,1770687039629,-150.0,0.00015988,2]
[404922522,1770687039638,-504.15766994,0.00015988,2]
[404922523,1770687039648,-150.0,0.00015988,2]
[404922524,1770687039657,-205.65602695,0.00015988,2]
[404922525,1770687039667,-287.13999383,0.00015988,2]
[404922526,1770687039676,-150.0,0.00015988,2]
[404922527,1770687039686,-218.05030227,0.00015988,2]
[404922528,1770687039696,-500.0,0.00015988,2]
[404922529,1770687039706,-500.0,0.00015988,2]
[404922530,1770687039716,-955.0,0.00015988,2]
[404922531,1770687039725,-200.0,0.00015988,2]
[404922532,1770687039734,-1226.5,0.00016009,2]
[404922533,1770687039744,-18425.32296869,0.00016033,2]
[404922534,1770687039753,-1226.5,0.00016038,2]
[404922535,1770687039762,-150.0,0.00016042,2]
[404922536,1770687039782,-150.0,0.00016042,2]
[404922537,1770687039792,-150.0,0.00016042,2]
[404922538,1770687039802,-500.0,0.00016042,2]
[404922539,1770687039811,-500.0,0.00016042,2]
[404922540,1770687039821,-955.0,0.00016042,2]
[404922541,1770687039830,-200.0,0.00016042,2]
[404922542,1770687039839,-1226.5,0.00016067,2]
[404922543,1770687039848,-1226.5,0.00016096,2]
[404922544,1770687039858,-190.04311126,0.00016097,2]
[404922545,1770687039867,-211.9030481,0.00016097,2]
[404922546,1770687039877,-204.51691733,0.00016097,2]
[404922547,1770687039886,-500.0,0.00016097,2]
[404922548,1770687039896,-245.5316857,0.00016097,2]
[404922549,1770687039905,-955.0,0.00016097,2]
[404922550,1770687039914,-200.0,0.00016097,2]
[404922551,1770687039923,-439.35,0.00016116,2]
[404922552,1770687039933,-1226.5,0.00016125,2]
[404922553,1770687039943,-500.0,0.00016152,2]
[404922554,1770687039952,-955.0,0.00016152,2]
[404922555,1770687039961,-200.0,0.00016152,2]
[404922556,1770687039970,-1226.5,0.00016154,2]
[404922557,1770687039980,-500.0,0.00016162,2]
[404922558,1770687039989,-500.0,0.00016162,2]
[404922559,1770687039997,-500.0,0.00016162,2]
[404922560,1770687040008,-500.0,0.00016162,2]
[404922561,1770687040017,-426.4,0.00016162,2]
[404922562,1770687040027,-500.0,0.00016162,2]
[404922563,1770687040037,-500.0,0.00016162,2]
[404922564,1770687040047,-500.0,0.00016162,2]
[404922565,1770687040056,-500.0,0.00016162,2]
[404922566,1770687040066,-500.0,0.00016162,2]
[404922567,1770687040075,-462.88,0.00016162,2]
[404922568,1770687040084,-151.0,0.00016162,2]
[404922569,1770687040094,-185.94818944,0.00016162,2]
[404922570,1770687040103,-500.0,0.00016162,2]
[404922571,1770687040113,-500.0,0.00016162,2]
[404922572,1770687040122,-500.0,0.00016162,2]
[404922573,1770687040131,-500.0,0.00016162,2]
[404922574,1770687040145,-603.19668382,0.00016162,2]
[404922575,1770687040361,-500.0,0.00016162,2]
[404922576,1770687040370,-500.0,0.00016162,2]
[404922577,1770687040380,-500.0,0.00016162,2]
[404922578,1770687040390,-500.0,0.00016162,2]
[404922579,1770687040401,-620.13152007,0.00016162,2]
[404922580,1770687040410,-500.0,0.00016162,2]
[404922581,1770687040419,-500.0,0.00016162,2]
[404922582,1770687040428,-500.0,0.00016162,2]
[404922583,1770687040438,-500.0,0.00016162,2]
[404922584,1770687040447,-500.0,0.00016162,2]
[404922585,1770687040457,-500.0,0.00016162,2]
[404922586,1770687040467,-500.0,0.00016162,2]
[404922587,1770687040476,-500.0,0.00016162,2]
[404922588,1770687040486,-500.0,0.00016162,2]
[404922589,1770687040495,-500.0,0.00016162,2]
[404922590,1770687040504,-500.0,0.00016162,2]
[404922591,1770687040513,-500.0,0.00016162,2]
[404922592,1770687040522,-500.0,0.00016162,2]
[404922593,1770687040531,-1226.5,0.00016182,2]
[404922594,1770687040541,-44779.71034137,0.000162,5]
[404922595,1770687040550,-500.0,0.00016207,2]
[404922596,1770687040560,-955.0,0.00016207,2]
[404922597,1770687040569,-200.0,0.00016207,2]
[404922598,1770687040578,-1226.5,0.00016211,2]
[404922599,1770687040589,-188.29,0.00016233,2]
[404922601,1770687040609,-181.08010149,0.00016239,2]
[404922603,1770687040618,-181.29556588,0.00016239,2]
[404922605,1770687040627,-1226.5,0.0001624,2]
[404922607,1770687040636,-286.68,0.00016247,2]
[404922609,1770687040646,-500.0,0.00016262,2]
[404922610,1770687040657,-955.0,0.00016262,2]
[404922611,1770687040666,-200.0,0.00016262,2]
[404922612,1770687040675,-1226.5,0.00016269,2]
[404922613,1770687040685,-252.14,0.000163,2]
[404922614,1770687040694,-18425.32296869,0.000163,2]
[404922615,1770687040703,-508.37275181,0.00016316,2]
[404922616,1770687040712,-955.0,0.00016316,2]
[404922617,1770687040722,-200.0,0.00016316,2]
[404922618,1770687040731,-1000.0,0.00016321,2]